lending/lending_fUSD_20250516
["ID","MTS","AMOUNT","RATE_DAILY","PERIOD"]
[361266222,1747404662302,-1172.32,0.00016712,2]
[361266223,1747404662311,-400.0,0.00016712,2]
[361266224,1747404662321,-400.0,0.00016712,2]
[361266225,1747404662331,-212.021022,0.00016712,2]
[361266226,1747404662340,-3592.63,0.00016712,2]
[361266227,1747404662350,-212.021022,0.00016712,2]
[361266228,1747404662360,-212.021022,0.00016712,2]
[361266229,1747404662369,-283.2564798,0.00016712,2]
[361266230,1747404662379,-3007.4,0.00016712,2]
[361266231,1747404662389,-212.021022,0.00016712,2]
[361266232,1747404662398,-400.0,0.00016712,2]
[361266233,1747404662408,-212.021022,0.00016712,2]
[361266234,1747404662417,-212.021022,0.00016712,2]
[361266235,1747404662431,-291.23372378,0.00016712,2]
[361266236,1747404662441,-1348.0,0.00016712,2]
[361266237,1747404662453,-9253.55,0.00016712,2]
[361266238,1747404662463,-400.0,0.00016712,2]
[361266239,1747404662482,-1626.09,0.00016712,2]
[361266240,1747404662493,-400.0,0.00016712,2]
[361266241,1747404662504,-364.62559894,0.00016712,2]
[361266242,1747404663547,-432.71959327,0.00016438,2]
[361266243,1747404663565,-133.69040673,0.00016438,2]
[361266244,1747404663575,-424.75,0.00016438,2]
[361266245,1747404663585,-402.92,0.00016438,2]
[361266246,1747404663595,-1033.24,0.00016438,2]
[361266247,1747404663607,-35.37440106,0.00016712,2]
[361266248,1747404663618,-400.0,0.00016712,2]
[361266249,1747404663628,-1125.46,0.00016712,2]
[361266250,1747404663638,-536.68,0.00016712,2]
[361266251,1747404663649,-400.0,0.00016712,2]
[361266252,1747404663659,-401.58642679,0.00016712,2]
[361266253,1747404663684,-3784.58357321,0.00016712,2]
[361266254,1747404663694,-1395.41642679,0.00016712,2]
[361266255,1747404664091,-400.0,0.00016438,2]
[361266256,1747404664101,-917.98357321,0.00016712,2]
[361266257,1747404664111,-2330.75,0.00016712,2]
[361266258,1747404664121,-400.0,0.00016712,2]
[361266259,1747404664131,-894.7,0.00016712,2]
[361266260,1747404664141,-503.16,0.00016712,2]
[361266261,1747404664152,-400.0,0.00016712,2]
[361266262,1747404664163,-8796.09,0.00016712,2]
[361266263,1747404664173,-498.32,0.00016712,2]
[361266264,1747404664183,-1208.01,0.00016712,2]
[361266265,1747404664193,-151.39276288,0.00016712,2]
[361266266,1747404664204,-3518.27,0.00016712,2]
[361266267,1747404664214,-3386.47,0.00016712,2]
[361266268,1747404664224,-400.0,0.00016712,2]
[361266269,1747404664234,-1175.77,0.00016712,2]
[361266270,1747404664244,-1187.85,0.00016712,2]
[361266271,1747404664254,-290.43329233,0.00016712,2]
[361266272,1747404664264,-400.0,0.00016712,2]
[361266273,1747404664274,-1067.04,0.00016712,2]
[361266274,1747404664284,-151.0,0.00016712,2]
[361266275,1747404664295,-151.0,0.00016712,2]
[361266276,1747404664306,-400.0,0.00016712,2]
[361266277,1747404664316,-151.0,0.00016712,2]
[361266278,1747404664327,-151.0,0.00016712,2]
[361266279,1747404664338,-151.0,0.00016712,2]
[361266280,1747404664348,-151.0,0.00016712,2]
[361266281,1747404664358,-3583.66,0.00016712,2]
[361266282,1747404664369,-185.30034619,0.00016712,2]
[361266283,1747404664379,-400.0,0.00016712,2]
[361266284,1747404664390,-400.0,0.00016712,2]
[361266285,1747404664399,-3032.44,0.00016712,2]
[361266286,1747404664410,-574.69,0.00016712,2]
[361266287,1747404664422,-400.0,0.00016712,2]
[361266288,1747404664432,-151.634704,0.00016712,2]
[361266289,1747404664441,-400.0,0.00016712,2]
[361266290,1747404664451,-1336.09,0.00016712,2]
[361266291,1747404664461,-12868.75,0.00016712,2]
[361266292,1747404664472,-3176.31,0.00016712,2]
[361266293,1747404664483,-400.0,0.00016712,2]
[361266294,1747404664493,-1527.25,0.00016712,2]
[361266295,1747404664507,-400.0,0.00016712,2]
[361266296,1747404664518,-1257.81,0.00016712,2]
[361266297,1747404664528,-400.0,0.00016712,2]
[361266298,1747404664537,-1951.7,0.00016712,2]
[361266299,1747404664548,-400.0,0.00016712,2]
[361266300,1747404664558,-400.0,0.00016712,2]
[361266301,1747404664567,-171.11193594,0.00016712,2]
[361266302,1747404664577,-930.57,0.00016712,2]
[361266303,1747404664588,-400.0,0.00016712,2]
[361266304,1747404664598,-1737.22,0.00016712,2]
[361266305,1747404664608,-1834.78,0.00016712,2]
[361266306,1747404664618,-400.0,0.00016712,2]
[361266307,1747404664628,-7631.54,0.00016712,2]
[361266308,1747404664638,-151.0,0.00016712,2]
[361266309,1747404664648,-400.0,0.00016712,2]
[361266310,1747404664658,-473.44,0.00016712,2]
[361266311,1747404664667,-400.0,0.00016712,2]
[361266312,1747404664677,-6441.51,0.00016712,2]
[361266313,1747404664687,-8385.23536402,0.00016712,2]
[361266314,1747404665772,-400.0,0.00016438,2]
[361266315,1747404665782,-400.0,0.00016438,2]
[361266316,1747404665794,-1746.51321035,0.00016521,2]
[361266317,1747404665819,-376.75350001,0.00016438,2]
[361266318,1747404665856,-136.34649999,0.00016438,2]
[361266319,1747404665866,-5457.67963917,0.00016521,2]
[361266320,1747404665876,-3884.87463598,0.00016712,2]
[361266321,1747404665886,-400.0,0.00016712,2]
[361266322,1747404665895,-286.64,0.00016712,2]
[361266323,1747404665905,-174.45922486,0.00016712,2]
[361266324,1747404665916,-225.54077514,0.00016712,2]
[361266325,1747404665925,-400.0,0.00016712,2]
[361266326,1747404665935,-1206.25,0.00016712,2]
[361266327,1747404665944,-707.08897163,0.00016712,2]
[361266328,1747404665966,-1877.43102837,0.00016712,2]
[361266329,1747404665975,-2570.19,0.00016712,2]
[361266330,1747404665984,-777.42805267,0.00016712,2]
[361266331,1747404666001,-32.78194733,0.00016712,2]
[361266332,1747404666011,-675.34,0.00016712,2]
[361266333,1747404666020,-508.02,0.00016712,2]
[361266334,1747404666030,-400.0,0.00016712,2]
[361266335,1747404666041,-634.98,0.00016712,2]
[361266336,1747404666050,-400.94,0.00016712,2]
[361266337,1747404666059,-1030.84,0.00016712,2]
[361266338,1747404666068,-400.0,0.00016712,2]
[361266339,1747404666078,-400.0,0.00016712,2]
[361266340,1747404666087,-400.0,0.00016712,2]
[361266341,1747404666096,-400.0,0.00016712,2]
[361266342,1747404666105,-165.94370672,0.00016712,2]
[361266343,1747404666114,-400.0,0.00016712,2]
[361266344,1747404666124,-654.22,0.00016712,2]
[361266345,1747404666133,-1779.35,0.00016712,2]
[361266346,1747404666225,-822.08,0.00016712,2]
[361266347,1747404666235,-400.0,0.00016712,2]
[361266348,1747404666244,-400.0,0.00016712,2]
[361266349,1747404666254,-400.0,0.00016712,2]
[361266350,1747404666263,-2840.94,0.00016712,2]
[361266351,1747404666272,-7605.51,0.00016712,2]
[361266352,1747404666281,-400.0,0.00016712,2]
[361266353,1747404666291,-400.0,0.00016712,2]
[361266354,1747404666300,-1361.94,0.00016712,2]
[361266355,1747404666309,-499.13,0.00016712,2]
[361266356,1747404666318,-405.18469038,0.00016712,2]
[361266357,1747404666328,-3670.78,0.00016712,2]
[361266358,1747404666337,-632.76,0.00016712,2]
[361266359,1747404666346,-5832.64,0.00016712,2]
[361266360,1747404666355,-400.0,0.00016712,2]
[361266361,1747404666364,-400.0,0.00016712,2]
[361266362,1747404666374,-705.47,0.00016712,2]
[361266363,1747404666382,-697.63,0.00016712,2]
[361266364,1747404666391,-400.0,0.00016712,2]
[361266365,1747404666400,-450.89,0.00016712,2]
[361266366,1747404666409,-400.0,0.00016712,2]
[361266367,1747404666419,-170.61792793,0.00016712,2]
[361266368,1747404666428,-400.0,0.00016712,2]
[361266369,1747404666439,-1566.27,0.00016712,2]
[361266370,1747404666449,-863.36,0.00016712,2]
[361266371,1747404666458,-400.0,0.00016712,2]
[361266372,1747404666468,-197.61489174,0.00016712,2]
[361266373,1747404666477,-400.0,0.00016712,2]
[361266374,1747404666487,-466.17,0.00016712,2]
[361266375,1747404666496,-4964.47,0.00016712,2]
[361266376,1747404666505,-851.16,0.00016712,2]
[361266377,1747404666516,-1299.63,0.00016712,2]
[361266378,1747404666525,-2168.2,0.00016712,2]
[361266379,1747404666534,-400.0,0.00016712,2]
[361266380,1747404666544,-400.0,0.00016712,2]
[361266381,1747404666553,-400.0,0.00016712,2]
[361266382,1747404666563,-400.0,0.00016712,2]
[361266383,1747404666573,-425.42,0.00016712,2]
[361266384,1747404666582,-400.0,0.00016712,2]
[361266385,1747404666592,-1119.82,0.00016712,2]
[361266386,1747404666601,-7491.03,0.00016712,2]
[361266387,1747404666611,-400.0,0.00016712,2]
[361266388,1747404666620,-462.06,0.00016712,2]
[361266389,1747404666630,-971.66,0.00016712,2]
[361266390,1747404666639,-400.0,0.00016712,2]
[361266391,1747404666649,-3049.62,0.00016712,2]
[361266392,1747404666658,-1384.37,0.00016712,2]
[361266393,1747404666668,-514.91,0.00016712,2]
[361266394,1747404666678,-400.0,0.00016712,2]
[361266395,1747404666688,-400.0,0.00016712,2]
[361266396,1747404666698,-9664.1,0.00016712,2]
[361266397,1747404666708,-400.0,0.00016712,2]
[361266398,1747404666717,-400.0,0.00016712,2]
[361266399,1747404666727,-2843.73,0.00016712,2]
[361266400,1747404666736,-764.81,0.00016712,2]
[361266401,1747404666746,-400.0,0.00016712,2]
[361266402,1747404666756,-400.0,0.00016712,2]
[361266403,1747404666766,-1502.95,0.00016712,2]
[361266404,1747404666775,-400.0,0.00016712,2]
[361266405,1747404666786,-400.0,0.00016712,2]
[361266406,1747404666796,-10503.24,0.00016712,2]
[361266407,1747404666806,-1388.6,0.00016712,2]
[361266408,1747404666816,-543.99,0.00016712,2]
[361266409,1747404666825,-400.0,0.00016712,2]
[361266410,1747404666835,-400.0,0.00016712,2]
[361266411,1747404666845,-2897.05,0.00016712,2]
[361266412,1747404666854,-153.21954944,0.00016712,2]
[361266416,1747405659179,87633.79018746,0.00012,5]
[361266417,1747405659205,60634.45734066,0.00012,5]
[361266438,1747405808381,-164.63034405,0.00010858,2]
[361266440,1747405808404,-26.18599867,0.00010958,2]
[361266463,1747405832199,-300.0,0.00010958,2]
[361266465,1747405832208,-1109.64450223,0.00010958,2]
[361266477,1747405832274,-90.35549777,0.00010958,2]
[361266478,1747405832284,-300.0,0.00010958,2]
[361266479,1747405832294,-250.0,0.00010958,2]
[361266480,1747405832303,-700.0,0.00010959,2]
[361266481,1747405832312,-700.0,0.00010959,2]
[361266482,1747405832321,-700.0,0.00010959,2]
[361266483,1747405832330,-700.0,0.00010959,2]
[361266484,1747405832340,-700.0,0.00010959,2]
[361266485,1747405832349,-700.0,0.00010959,2]
[361266486,1747405832359,-700.0,0.00010959,2]
[361266487,1747405832368,-700.0,0.00010959,2]
[361266488,1747405832378,-544.03219788,0.00010959,2]
[361266489,1747405832389,-700.0,0.00010959,2]
[361266490,1747405832398,-100.41853069,0.00010959,2]
[361266491,1747405832414,-599.58146931,0.00010959,2]
[361266492,1747405832423,-42.91052189,0.00010959,2]
[361266493,1747405832435,-271.414428,0.00010959,2]
[361266494,1747405832446,-295.80682,0.00010959,2]
[361266495,1747405832457,-89.86823011,0.00010959,2]
[361266496,1747405832466,-697.85714098,0.00010959,2]
[361266497,1747405832477,-2.14285902,0.00010959,2]
[361266498,1747405832487,-700.0,0.00010959,2]
[361266499,1747405832496,-700.0,0.00010959,2]
[361266500,1747405832504,-158.62834208,0.00010959,2]
[361266501,1747405832515,-541.37165792,0.00010959,2]
[361266502,1747405832525,-55.96907502,0.00010959,2]
[361266503,1747405832536,-644.03092498,0.00010959,2]
[361266504,1747405832546,-700.0,0.00010959,2]
[361266505,1747405832555,-700.0,0.00010959,2]
[361266506,1747405832565,-700.0,0.00010959,2]
[361266507,1747405832574,-371.63735502,0.00010959,2]
[361266508,1747405832586,-328.36264498,0.00010959,2]
[361266509,1747405832595,-700.0,0.00010959,2]
[361266510,1747405832604,-252.50548609,0.00010959,2]
[361266511,1747405832615,-447.49451391,0.00010959,2]
[361266512,1747405832625,-70.83387785,0.00010959,2]
[361266513,1747405832636,-629.16612215,0.00010959,2]
[361266514,1747405832646,-700.0,0.00010959,2]
[361266515,1747405832655,-700.0,0.00010959,2]
[361266516,1747405832664,-567.73387785,0.00010959,2]
[361266517,1747405832675,-132.26612215,0.00010959,2]
[361266518,1747405832685,-189.02542449,0.00010959,2]
[361266519,1747405832696,-510.97457551,0.00010959,2]
[361266520,1747405832705,-700.0,0.00010959,2]
[361266521,1747405832715,-200.0,0.00011944,2]
[361266522,1747405832725,-250.0,0.00011944,2]
[361266523,1747405832734,-252.0,0.00012042,2]
[361266524,1747405832743,-200.0,0.00012054,2]
[361266525,1747405832753,-250.0,0.00012054,2]
[361266527,1747405832762,-1680.0,0.00012054,2]
[361266529,1747405832772,-1990.0,0.00013259,2]
[361266531,1747405832781,-11741.73877069,0.00013368,2]
[361266533,1747405832791,-595.01,0.00013382,2]
[361266535,1747405832800,-964.94,0.00013699,2]
[361266537,1747405832809,-900.0,0.000139,5]
[361266539,1747405832818,-153.67080794,0.000139,2]
[361266540,1747405832827,-426.07984586,0.000139,2]
[361266541,1747405832839,-159.89819766,0.000139,2]
[361266543,1747405832849,-255.42206328,0.000139,2]
[361266692,1747405838164,-591.22387905,0.000139,2]
[361266693,1747405838176,-489.46340419,0.000139,2]
[361266694,1747405838187,-824.93485951,0.000139,2]
[361266695,1747405838249,-2232.97516598,0.000139,2]
[361266696,1747405838261,-793.39082938,0.000139,2]
[361266697,1747405838270,-230.36189945,0.000139,2]
[361266698,1747405838279,-468.06589756,0.00013973,2]
[361266699,1747405838290,-31.93410244,0.00013973,2]
[361266700,1747405838299,-500.0,0.00013973,2]
[361266701,1747405838308,-500.0,0.00013973,2]
[361266702,1747405838318,-500.0,0.00013973,2]
[361266703,1747405838327,-500.0,0.00013973,2]
[361266704,1747405838336,-500.0,0.00013973,2]
[361266705,1747405838344,-159.0,0.0001399,2]
[361266706,1747405838353,-122.64496172,0.0001399,2]
[361266707,1747405838365,-239.70503828,0.0001399,2]
[361266708,1747405838374,-362.35,0.0001399,2]
[361266709,1747405838387,-247.22321243,0.00013999,2]
[361266710,1747405838396,-161.87926859,0.00013999,2]
[361266711,1747405838405,-202.01256173,0.00013999,2]
[361266712,1747405838414,-500.0,0.00013999,2]
[361266713,1747405838423,-500.0,0.00013999,2]
[361266714,1747405838432,-304.66679222,0.00013999,2]
[361266715,1747405838442,-500.0,0.00013999,2]
[361266716,1747405838451,-500.0,0.00013999,2]
[361266717,1747405838460,-282.16312675,0.00013999,2]
[361266718,1747405838471,-217.83687325,0.00013999,2]
[361266719,1747405838481,-500.0,0.00013999,2]
[361266720,1747405838490,-606.47172197,0.00013999,2]
[361266721,1747405838499,-500.0,0.00013999,2]
[361266723,1747405838898,-500.0,0.00013999,2]
[361266724,1747405838910,-500.0,0.00013999,2]
[361266725,1747405838919,-500.0,0.00013999,2]
[361266726,1747405838928,-500.0,0.00013999,2]
[361266727,1747405838938,-500.0,0.00013999,2]
[361266728,1747405838947,-334.45343463,0.00013999,2]
[361266729,1747405838956,-500.0,0.00013999,2]
[361266730,1747405838966,-500.0,0.00013999,2]
[361266731,1747405838975,-500.0,0.00013999,2]
[361266732,1747405838984,-471.29434438,0.00013999,2]
[361266733,1747405838994,-13369.94362577,0.00014,2]
[361266734,1747405839005,-953.82884201,0.00014,2]
[361266739,1747405840396,-934320.29785295,0.00014,2]
[361266740,1747405840405,-777200.30638651,0.00014,2]
[361266741,1747405840579,-1005.72991175,0.00014,2]
[361266742,1747405840593,-3502.92483313,0.00014,2]
[361266743,1747405840604,-654.839996,0.00014,2]
[361266744,1747405840621,-561.3217648,0.00014,2]
[361266745,1747405840639,-867.89771197,0.00014,2]
[361266746,1747405840649,-520.1,0.00014,2]
[361266747,1747405840660,-1000.0,0.00014,2]
[361266748,1747405840672,-13724.5799459,0.00014,2]
[361266749,1747405840682,-34533.35355189,0.00014,2]
[361266750,1747405840693,-40389.97660468,0.00014,2]
[361266751,1747405840704,-1028.93609989,0.00014,2]
[361266752,1747405840715,-682.60523184,0.00014,2]
[361266753,1747405840726,-1034.355,0.00014,2]
[361266754,1747405840737,-494.99999995,0.00014,2]
[361266755,1747405840749,-9854.64352264,0.00014,2]
[361266756,1747405840760,-6492.98264759,0.00014,2]
[361266757,1747405840770,-260.5936556,0.00014,2]
[361266758,1747405840781,-681.35926663,0.00014,2]
[361266759,1747405840793,-6223.95118902,0.00014,2]
[361266760,1747405840804,-500.0,0.00014,2]
[361266761,1747405840815,-577.46205938,0.00014,2]
[361266762,1747405840826,-1189.7614,0.00014,2]
[361266763,1747405840837,-3815.09189984,0.00014,2]
[361266833,1747405843254,-2066.8021701,0.00014,2]
[361266835,1747405843332,-643.34,0.00014,2]
[361266836,1747405843343,-280618.86485549,0.00014,2]
[361266837,1747405843354,-19855.82366223,0.00014,2]
[361266838,1747405843365,-631.44,0.00014,2]
[361266839,1747405843377,-534.3999998,0.00014,2]
[361266840,1747405843391,-450.0,0.00014,2]
[361266841,1747405843427,-506.62630079,0.00014,2]
[361266842,1747405843438,-352.72799642,0.00014,2]
[361266843,1747405843449,-485.305,0.00014,2]
[361266844,1747405843461,-262.89193095,0.00014,2]
[361266845,1747405843472,-2533.65043445,0.00014,2]
[361266846,1747405843484,-2903.04000028,0.00014,2]
[361266847,1747405843523,-1005.9,0.00014,2]
[361266848,1747405843535,-15271.10087165,0.00014,2]
[361266849,1747405843605,-11437.10514328,0.00014,2]
[361266850,1747405843617,-9652.48560775,0.00014,2]
[361266852,1747405843628,-1669.93705332,0.00014,2]
[361266854,1747405843639,-2513.09890421,0.00014,2]
[361266858,1747405846224,-467.96961399,0.00014,2]
[361266859,1747405846236,-5257.04296539,0.00014,2]
[361266860,1747405846248,-323.13142636,0.00014,2]
[361266861,1747405846310,-320.2207373,0.00014,2]
[361266862,1747405846321,-67934.28881896,0.00014,2]
[361266863,1747405846333,-1659.35691812,0.00014,2]
[361266864,1747405846344,-299.77777104,0.00014,2]
[361266865,1747405846410,-14572.01377124,0.00014,2]
[361266866,1747405846496,-1526.77504163,0.00014,2]
[361266867,1747405846515,-536.91118955,0.00014,2]
[361266868,1747405846526,-1417.56443875,0.00014,2]
[361266869,1747405846538,-3035.9000008,0.00014,2]
[361266870,1747405846623,-2601.43652111,0.00014,2]
[361266871,1747405846635,-642.8559147,0.00014,2]
[361266872,1747405846646,-2508.77207442,0.00014,2]
[361266873,1747405846658,-139862.92389965,0.00014,2]
[361266874,1747406220844,450.0,0.0001,2]
[361266875,1747406302892,-213.98123084,0.00010958,2]
[361266876,1747406356529,414.11160997,0.00024657,30]
[361266877,1747406572871,-220.88662924,0.00010958,2]
[361266878,1747406577107,-162.56067375,0.00010958,2]
[361266879,1747406578715,-174.45932625,0.00010958,2]
[361266916,1747406919049,900.0,0.00027397,120]
[361266931,1747407031424,-207.816753,0.00010849,2]
[361266932,1747407031433,-51.923247,0.00010939,2]
[361266933,1747407031456,-104.28535796,0.00010939,2]
[361266934,1747407031466,-428.0,0.00010948,2]
[361266935,1747407031475,-300.0,0.00010949,2]
[361266936,1747407031485,-500.0,0.00010949,2]
[361266937,1747407031493,-500.0,0.00010949,2]
[361266938,1747407031503,-500.0,0.00010949,2]
[361266939,1747407031512,-500.0,0.00010949,2]
[361266940,1747407031522,-500.0,0.00010949,2]
[361266941,1747407031532,-500.0,0.00010949,2]
[361266942,1747407031541,-333.44534347,0.00010949,2]
[361266943,1747407031551,-500.0,0.00010949,2]
[361266944,1747407031561,-500.0,0.00010949,2]
[361266945,1747407031570,-500.0,0.00010949,2]
[361266946,1747407031580,-250.0,0.00010949,2]
[361266947,1747407031589,-500.0,0.00010949,2]
[361266948,1747407031599,-3451.41209424,0.00010949,2]
[361266949,1747407031608,-12186.7283047,0.0001095,2]
[361266950,1747407031619,-5201.586,0.0001095,2]
[361266969,1747407032279,-5298.82500043,0.0001095,2]
[361266985,1747407032425,-5041.71211628,0.0001095,2]
[361266988,1747407032442,-407.21331262,0.0001095,2]
[361267502,1747407037448,-275.71199979,0.00010795,2]
[361267504,1747407037460,-322.45318347,0.00010795,2]
[361267506,1747407037472,-233.33713674,0.00010795,2]
[361267508,1747407037481,-41.80454392,0.00010948,2]
[361267510,1747407037493,-179.19545608,0.00010948,2]
[361267512,1747407037503,-200.25582029,0.0001095,2]
[361267529,1747407037652,-1784.10286343,0.0001095,2]
[361267551,1747407037847,-1301.48,0.0001095,2]
[361267747,1747407039714,-2066.99,0.0001095,2]
[361267780,1747407040010,-1981.9999998,0.0001095,2]
[361267793,1747407040127,-388.03786282,0.0001095,2]
[361267808,1747407040244,-1240.2,0.0001095,2]
[361268038,1747407043388,-63754.85443085,0.0001095,2]
[361268039,1747407043398,-700.0,0.00010959,2]
[361268040,1747407043407,-700.0,0.00010959,2]
[361268041,1747407043416,-700.0,0.00010959,2]
[361268043,1747407043426,-700.0,0.00010959,2]
[361268045,1747407043435,-700.0,0.00010959,2]
[361268046,1747407043445,-700.0,0.00010959,2]
[361268048,1747407043454,-700.0,0.00010959,2]
[361268050,1747407043463,-700.0,0.00010959,2]
[361268052,1747407043473,-700.0,0.00010959,2]
[361268053,1747407043482,-700.0,0.00010959,2]
[361268054,1747407043491,-565.25,0.00011534,2]
[361268055,1747407043500,-500.0,0.00012,2]
[361268056,1747407043510,-1076.0,0.00012661,2]
[361268057,1747407043519,-150.0,0.00012678,7]
[361268058,1747407043529,-210.0,0.00012959,7]
[361268059,1747407043539,-200.0,0.00012959,7]
[361268060,1747407043548,-210.0,0.00012959,7]
[361268061,1747407043557,-200.0,0.00012959,7]
[361268062,1747407043566,-184.89235759,0.00012959,7]
[361268063,1747407043575,-176.08795961,0.00012959,7]
[361268064,1747407043584,-399.12,0.00013002,2]
[361268065,1747407043594,-200.0,0.0001328,2]
[361268066,1747407043603,-161.94,0.0001329,2]
[361268067,1747407043613,-1076.0,0.00013327,2]
[361268068,1747407043622,-607.31,0.00013451,2]
[361268069,1747407043631,-150.0,0.00013456,2]
[361268070,1747407043641,-916.69,0.00013699,2]
[361268071,1747407043650,-200.0,0.00013699,2]
[361268072,1747407043660,-500.0,0.00013699,2]
[361268073,1747407043669,-500.0,0.00013699,2]
[361268074,1747407043678,-500.0,0.00013699,2]
[361268075,1747407043688,-500.0,0.00013699,2]
[361268076,1747407043697,-500.0,0.00013699,2]
[361268077,1747407043707,-500.0,0.00013699,2]
[361268078,1747407043716,-500.0,0.00013699,2]
[361268079,1747407043726,-500.0,0.00013699,2]
[361268080,1747407043735,-500.0,0.00013699,2]
[361268081,1747407043744,-500.0,0.00013699,2]
[361268082,1747407043754,-500.0,0.00013699,2]
[361268083,1747407043763,-500.0,0.00013699,2]
[361268084,1747407043772,-500.0,0.00013699,2]
[361268085,1747407043783,-500.0,0.00013699,2]
[361268086,1747407043793,-500.0,0.00013699,2]
[361268087,1747407043802,-225.59928411,0.00013699,2]
[361268088,1747407043812,-500.0,0.00013699,2]
[361268090,1747407043821,-500.0,0.00013699,2]
[361268091,1747407043830,-500.0,0.00013699,2]
[361268092,1747407043839,-500.0,0.00013699,2]
[361268093,1747407043850,-500.0,0.00013699,2]
[361268094,1747407043861,-500.0,0.00013699,2]
[361268095,1747407043870,-500.0,0.00013699,2]
[361268096,1747407043879,-500.0,0.00013699,2]
[361268097,1747407043889,-500.0,0.00013699,2]
[361268098,1747407043898,-500.0,0.00013699,2]
[361268099,1747407043907,-500.0,0.00013699,2]
[361268100,1747407043916,-500.0,0.00013699,2]
[361268101,1747407043926,-500.0,0.00013699,2]
[361268102,1747407043935,-500.0,0.00013699,2]
[361268103,1747407043945,-500.0,0.00013699,2]
[361268104,1747407043954,-506.47172197,0.00013699,2]
[361268105,1747407043964,-500.0,0.00013699,2]
[361268106,1747407043974,-500.0,0.00013699,2]
[361268107,1747407043983,-500.0,0.00013699,2]
[361268108,1747407043992,-500.0,0.00013699,2]
[361268109,1747407044002,-500.0,0.00013699,2]
[361268110,1747407044013,-500.0,0.00013699,2]
[361268111,1747407044023,-499.99999999,0.00013699,2]
[361268112,1747407044033,-565.25,0.00013797,2]
[361268113,1747407044042,-189.6,0.000138,2]
[361268114,1747407044051,-8254.81873448,0.0001385,2]
[361268119,1747407044099,-2000.0,0.0001385,2]
[361268121,1747407044136,-1594.149988,0.0001385,2]
[361268122,1747407044166,-2198.54990603,0.0001385,2]
[361268123,1747407044176,-585.97804352,0.000139,2]
[361268124,1747407044185,-153.67080794,0.000139,2]
[361268125,1747407044195,-2021.77777336,0.000139,2]
[361268126,1747407044204,-5214.43714515,0.000139,2]
[361268127,1747407044214,-201.56666208,0.000139,2]
[361268128,1747407044223,-1076.0,0.00013993,2]
[361268129,1747407044233,-361.28,0.00013999,2]
[361268130,1747407044242,-318530.73682451,0.00014,2]
[361268131,1747407044252,-550.0,0.00014,2]
[361268132,1747407044261,-264.95815375,0.00014,2]
[361268133,1747407044271,-5214.43714511,0.00014232,2]
[361268134,1747407044283,-2021.77777328,0.0001426,2]
[361268135,1747407044292,-4000.0,0.00014406,2]
[361268136,1747407044302,-201.56666201,0.00014522,2]
[361268137,1747407044311,-5214.43714511,0.00014564,2]
[361268138,1747407044320,-878.08,0.00014571,2]
[361268139,1747407044329,-250.0,0.00014603,2]
[361268141,1747407044338,-2021.77777328,0.0001462,2]
[361268143,1747407044348,-399.12,0.00014628,2]
[361268145,1747407044357,-151.0,0.00014703,2]
[361268147,1747407044367,-151.0,0.00014793,2]
[361268149,1747407044375,-5214.43714511,0.00014895,2]
[361268151,1747407044385,-2021.77777328,0.0001498,2]
[361268152,1747407044394,-150.0,0.00015068,2]
[361268153,1747407044403,-201.56666201,0.00015145,2]
[361268154,1747407044413,-153.67080794,0.00015153,2]